bitfinex-derivatives/quotes_BNBF0:USTF0_20250425
["timestamp","ask_amount","ask_price","bid_price","bid_amount"]
[1745553371071,1.13014239,601.19,600.29,0.30570004]
[1745553371276,1.13014239,601.19,600.3,0.30570004]
[1745553371475,1.13014239,601.18,600.31,0.30570004]
[1745553371673,1.13014239,601.18,600.29,0.30570004]
[1745553371871,1.13014239,601.17,600.3,0.30570004]
[1745553372071,1.13014239,601.17,600.31,0.30569191]
[1745553372271,1.13014239,601.17,600.29,0.30569191]
[1745553372470,1.13014239,601.17,600.3,0.30569191]
[1745553372676,1.13014239,601.16,600.3,0.30569191]
[1745553372872,1.12281766,601.16,600.3,0.30569191]
[1745553373272,1.25759526,602.1,600.3,0.30569191]
[1745553373672,1.25759526,602.1,600.31,0.30568091]
[1745553373874,1.25759526,602.1,600.32,0.30568091]
[1745553374075,1.25759526,602.1,600.33,0.30568091]
[1745553374273,1.25759526,602.1,600.34,0.30568091]
[1745553374578,1.25759526,602.1,600.35,0.30568091]
[1745553374779,1.25759526,602.1,600.36,0.30568091]
[1745553374979,1.25759526,602.1,600.3,0.30568091]
[1745553375177,1.25759526,602.1,600.31,0.30568091]
[1745553375373,1.25759526,602.1,600.32,0.30568091]
[1745553375578,2.13965861,602.74,599.72,0.7080322]
[1745553375579,1.25759526,602.06,600.36,1.0596617]
[1745553378386,1.25759526,602.72,599.99,1.0596617]
[1745553378583,1.25759526,602.72,600.0,0.30570368]
[1745553378784,1.25759526,602.72,600.0,0.59524042]
[1745553378982,1.25759526,602.72,600.01,0.30570368]
[1745553379588,0.28953554,602.71,600.01,0.30570368]
[1745553379987,1.25759526,602.72,599.99,1.0596617]
[1745553380187,1.25759526,602.72,600.0,0.30570949]
[1745553380385,0.28953674,602.71,600.0,0.59524623]
[1745553380585,0.28953674,602.71,600.01,0.30570949]
[1745553381383,0.28953674,602.71,600.0,0.28953674]
[1745553381589,0.28953674,602.71,600.01,0.30570894]
[1745553382984,1.25759526,602.72,599.99,1.0596617]
[1745553383186,0.28953554,602.7,600.0,0.59524448]
[1745553383391,0.28953554,602.7,600.01,0.30570894]
[1745553385691,1.13189729,602.69,600.01,0.30570894]
[1745553385987,1.13189729,602.69,599.99,1.0596617]
[1745553386191,1.13189729,602.69,600.0,0.30571015]
[1745553386490,1.42143644,602.68,600.0,0.5952493]
[1745553386691,1.42143644,602.68,600.01,0.30571015]
[1745553386992,1.42143644,602.68,600.02,0.919]
[1745553387192,1.13189729,602.67,600.03,0.30571015]
[1745553387588,1.25759526,602.34,600.15,1.0596617]
[1745553387787,1.25759526,602.34,600.16,0.30571015]
[1745553387991,1.13189729,602.33,600.16,0.30571015]
[1745553388191,1.13189729,602.32,600.16,0.30571015]
[1745553388689,1.13189729,602.31,600.16,0.30571015]
[1745553389091,1.13189729,602.31,600.17,0.30570985]
[1745553389291,1.13189729,602.3,600.16,0.30570985]
[1745553389489,1.42146415,602.3,600.17,0.30570985]
[1745553389793,1.13189729,602.29,600.18,0.30570985]
[1745553389993,1.13189729,602.29,600.19,0.30570985]
[1745553390193,1.13189729,602.28,600.16,0.30570985]
[1745553390694,1.13189729,602.27,600.16,0.30570985]
[1745553391094,1.13189729,602.26,600.16,0.30570985]
[1745553391294,1.13189729,602.26,600.16,1.35870985]
[1745553391497,1.13189729,602.26,600.17,0.30570985]
[1745553391897,1.13189729,602.25,600.17,0.30570985]
[1745553392095,1.13189729,602.24,600.18,0.30572364]
[1745553392293,1.42148704,602.24,600.16,1.053]
[1745553392493,1.42148704,602.24,600.17,0.30572497]
[1745553392694,1.13189729,602.23,600.17,0.30572497]
[1745553393295,1.13189729,602.22,600.17,1.72272497]
[1745553393496,1.13189729,602.22,600.18,0.30572497]
[1745553393889,1.13189729,602.21,600.18,0.30572497]
[1745553394191,1.13189729,602.2,600.18,0.30572497]
[1745553394598,1.13189729,602.19,600.18,0.30572497]
[1745553394995,1.13189729,602.19,600.18,0.30145039]
[1745553395199,1.25759526,602.08,600.21,1.0596617]
[1745553395698,1.13189729,602.07,600.21,1.0596617]
[1745553395998,1.13189729,602.07,600.22,0.30572762]
[1745553396399,1.13189729,602.06,600.22,0.30572762]
[1745553396595,1.13189729,602.06,600.21,1.0596617]
[1745553396799,1.13189729,602.06,600.22,0.30572762]
[1745553396999,1.13189729,602.05,600.22,0.30572762]
[1745553397398,1.13189729,602.04,600.22,0.30572762]
[1745553397695,1.13189729,602.03,600.22,0.30572762]
[1745553397901,1.25759526,601.94,600.27,1.0596617]
[1745553398198,1.42151114,601.93,600.28,0.30572762]
[1745553398599,1.13189729,601.92,600.28,0.30572762]
[1745553398901,1.13189729,601.91,600.28,0.30572762]
[1745553399101,1.13189729,601.91,600.28,1.58972762]
[1745553399293,1.13189729,601.91,600.29,0.30572762]
[1745553399498,1.13189729,601.9,600.29,0.30572762]
[1745553400297,1.13189729,601.89,600.29,0.30572762]
[1745553400700,1.13189729,601.88,600.29,0.30572762]
[1745553401101,1.13189729,601.88,600.28,1.284]
[1745553401403,1.42151716,601.87,600.29,0.30572842]
[1745553401602,1.13189729,601.86,600.29,0.30572842]
[1745553402003,1.13189729,601.85,600.29,0.30572842]
[1745553402403,1.13189729,601.84,600.29,0.30572842]
[1745553402899,1.13189729,601.83,600.29,0.30572842]
[1745553403398,1.13189729,601.82,600.29,0.30572842]
[1745553403799,1.13189729,601.81,600.29,0.30572842]
[1745553404103,1.13189729,601.8,600.29,1.45972842]
[1745553404299,1.13189729,601.8,600.3,0.30572842]
[1745553404503,0.28962831,601.79,600.3,0.30572842]
[1745553404703,1.13189729,601.78,600.3,0.30572842]
[1745553405003,1.13189729,601.77,600.3,0.30572842]
[1745553405504,1.13189729,601.76,600.3,0.30572842]
[1745553406005,1.13189729,601.75,600.3,0.30572842]
[1745553406606,1.13189729,601.74,600.3,0.30572842]
[1745553407406,1.42154006,601.73,600.31,0.30574493]
[1745553407600,1.42154006,601.73,600.3,0.30574493]
[1745553407802,1.13189729,601.72,600.3,0.30574493]
[1745553408305,1.13189729,601.71,600.3,0.30574493]
[1745553408705,1.13189729,601.71,600.29,1.154]
[1745553408906,1.13189729,601.7,600.3,0.30574353]
[1745553409105,1.13189729,601.69,600.3,0.30574353]
[1745553409401,1.13189729,601.68,600.3,0.30574353]
[1745553409907,1.13189729,601.67,600.3,0.30574353]
[1745553410408,1.13189729,601.66,600.31,0.30572072]
[1745553410606,1.13189729,601.66,600.3,0.30572072]
[1745553410807,1.13189729,601.65,600.31,0.30572072]
[1745553411008,1.13189729,601.65,600.3,0.30572072]
[1745553411204,1.13189729,601.64,600.31,0.30572072]
[1745553411408,1.13189729,601.64,600.29,1.154]
[1745553411409,1.13189729,601.64,600.3,0.30572072]
[1745553411603,1.13189729,601.64,600.31,0.30572072]
[1745553411806,1.13189729,601.63,600.3,0.30572072]
[1745553412007,1.13189729,601.63,600.31,0.30572072]
[1745553412204,1.13189729,601.62,600.3,0.30572072]
[1745553412509,1.13189729,601.61,600.3,0.30572072]
[1745553413210,1.13189729,601.6,600.3,0.30572072]
[1745553413410,1.13189729,601.6,600.29,1.154]
[1745553413611,1.13189729,601.6,600.3,0.30571723]
[1745553414211,1.13189729,601.59,600.3,0.30571723]
[1745553414606,1.13189729,601.58,600.3,0.30571723]
[1745553414812,1.13189729,601.58,600.29,1.154]
[1745553415011,1.13189729,601.57,600.3,0.30572241]
[1745553415311,1.13189729,601.57,600.29,1.154]
[1745553415612,1.13189729,601.56,600.3,0.30572244]
[1745553416012,1.13189729,601.56,600.29,1.154]
[1745553416212,1.13189729,601.55,600.28,2.3436617]
[1745553416413,1.13189729,601.55,600.3,1.0596617]
[1745553417014,1.13189729,601.54,600.3,1.0596617]
[1745553417314,1.13189729,601.53,600.3,1.0596617]
[1745553417814,1.13189729,601.52,600.3,1.0596617]
[1745553418010,1.13189729,601.51,600.3,1.0596617]
[1745553418315,1.13189729,601.5,600.3,1.0596617]
[1745553418816,1.13189729,601.49,600.3,1.0596617]
[1745553419214,1.13189729,601.49,600.28,1.284]
[1745553419515,1.13189729,601.48,600.28,1.284]
[1745553419717,1.13189729,601.48,600.28,2.421]
[1745553419915,1.13189729,601.48,600.28,3.702]
[1745553420417,1.13189729,601.47,600.28,3.702]
[1745553421218,1.13189729,601.46,600.28,3.702]
[1745553421813,1.13189729,601.45,600.28,3.702]
[1745553422319,1.13189729,601.44,600.28,3.702]
[1745553423020,1.13189729,601.43,600.28,3.702]
[1745553423720,1.13189729,601.42,600.28,3.702]
[1745553424419,1.13189729,601.41,600.28,3.702]
[1745553424815,1.13189729,601.4,600.28,3.702]
[1745553425216,1.13189729,601.39,600.28,3.702]
[1745553425721,1.13189729,601.38,600.28,3.702]
[1745553425919,1.13189729,601.37,600.28,3.702]
[1745553426419,1.13189729,601.36,600.28,3.702]
[1745553427120,1.13189729,601.35,600.29,0.30572101]
[1745553427419,1.25759526,602.48,600.29,0.30572101]
[1745553427420,1.13189729,601.34,600.29,0.30572101]
[1745553427620,1.13189729,601.33,600.29,0.30572101]
[1745553428318,1.13189729,601.32,600.29,0.30572101]
[1745553428519,1.13189729,601.32,600.3,0.30572085]
[1745553428720,1.13189729,601.31,600.29,0.30572085]
[1745553429120,1.13189729,601.3,600.29,0.30572085]
[1745553429520,1.13189729,601.29,600.29,0.30572085]
[1745553430022,1.13189729,601.28,600.29,0.30572085]
[1745553430822,1.13189729,601.27,600.29,0.30572085]
[1745553431220,1.13189729,601.26,600.29,0.30572085]
[1745553431522,1.13189729,601.26,600.28,2.418]
[1745553431719,1.13189729,601.26,600.29,0.30574437]
[1745553432223,1.13189729,601.26,600.29,1.63374437]
[1745553432419,1.13189729,601.26,600.3,0.30574437]
[1745553432626,1.13189729,601.25,600.3,0.30574437]
[1745553433126,1.13189729,601.25,600.29,1.328]
[1745553433323,1.13189729,601.24,600.3,0.3057556]
[1745553433721,1.13189729,601.23,600.3,0.3057556]
[1745553434026,1.13189729,601.22,600.3,0.3057556]
[1745553434426,1.13189729,601.21,600.3,0.3057556]
[1745553434626,1.13189729,601.2,600.3,0.3057556]
[1745553435027,1.13189729,601.19,600.3,0.3057556]
[1745553435520,1.13189729,601.18,600.3,0.3057556]
[1745553436126,1.13189729,601.17,600.3,0.3057556]
[1745553436527,1.13189729,601.16,600.3,0.3057556]
[1745553436728,1.13189729,601.15,600.3,0.3057556]
[1745553437028,1.13189729,601.14,600.3,0.3057556]
[1745553437629,1.13189729,601.13,600.3,0.3057556]
[1745553438430,1.13189729,601.12,600.3,0.3057556]
[1745553439128,1.13189729,601.11,600.3,0.3057556]
[1745553439729,1.13189729,601.1,600.3,0.3057556]
[1745553440124,1.13189729,601.09,600.3,0.3057556]
[1745553441224,1.13189729,601.08,600.3,0.3057556]
[1745553441727,1.13189729,601.07,600.3,0.3057556]
[1745553442831,1.13189729,601.06,600.3,0.3057556]
[1745553443828,1.13189729,601.05,600.3,0.3057556]
[1745553444133,1.13189729,601.04,600.3,0.3057556]
[1745553444335,1.13189729,601.03,600.3,0.3057556]
[1745553444628,1.13189729,601.02,600.3,0.3057556]
[1745553444928,1.13189729,601.01,600.3,0.3057556]
[1745553445129,1.13189729,601.0,600.3,0.3057556]
[1745553445328,1.13189729,600.99,600.3,0.3057556]
[1745553445637,1.13189729,600.98,600.3,0.3057556]
[1745553445829,1.13189729,600.98,600.31,0.30574617]
[1745553446031,1.13189729,600.97,600.3,0.30574617]
[1745553446229,1.13189729,600.97,600.31,0.30574617]
[1745553446535,1.13189729,600.96,600.32,0.30574617]
[1745553446731,1.13189729,600.96,600.3,0.30574617]
[1745553446935,1.13189729,600.96,600.31,0.30574617]
[1745553447136,1.13189729,600.96,600.32,0.30574617]
[1745553447335,1.13189729,600.95,600.3,0.30574617]
[1745553447540,1.13189729,600.95,600.31,0.30574617]
[1745553447739,1.13189729,600.94,600.3,0.30574617]
[1745553447934,1.13189729,600.94,600.31,0.30574617]
[1745553448139,1.13189729,600.94,600.3,0.30574617]
[1745553448440,1.13189729,600.94,600.29,1.328]
[1745553448441,1.13189729,600.93,600.31,0.30574617]
[1745553448739,1.13189729,600.92,600.32,0.30574617]
[1745553448940,1.13189729,600.92,600.29,1.328]
[1745553449139,1.13189729,600.92,600.3,0.3057464]
[1745553449336,1.13189729,600.91,600.3,0.3057464]
[1745553449742,1.13189729,600.9,600.3,0.3057464]
[1745553450040,1.13189729,600.89,600.3,0.3057464]
[1745553450441,1.13189729,600.88,600.3,0.3057464]
[1745553451041,1.13189729,600.87,600.3,0.3057464]
[1745553451542,1.13189729,600.87,600.32,1.0596617]
[1745553451738,1.13189729,600.86,600.33,0.3057464]
[1745553451942,1.13189729,600.85,600.33,0.3057464]
[1745553452644,1.13189729,600.84,600.33,0.3057464]
[1745553453143,1.13189729,600.83,600.33,0.3057464]
[1745553453545,1.13189729,600.82,600.33,0.3057464]
[1745553454442,1.13189729,600.82,600.31,0.3057464]
[1745553454643,1.13189729,600.81,600.31,0.3057464]
[1745553454841,1.13189729,600.8,600.31,0.3057464]
[1745553455946,1.13189729,600.79,600.31,0.3057464]
[1745553456650,1.13189729,600.78,600.31,0.3057464]
[1745553456848,1.13189729,600.78,600.32,0.3057509]
[1745553457048,1.13189729,600.77,600.3,0.3057509]
[1745553457247,1.13189729,600.77,600.31,0.3057509]
[1745553457450,1.13189729,600.77,600.32,0.3057509]
[1745553457644,1.13189729,600.76,600.33,0.3057509]
[1745553457944,1.13189729,600.75,600.34,0.3057509]
[1745553458249,1.13189729,600.74,600.29,2.3876617]
[1745553458450,1.13189729,600.74,600.3,0.30575064]
[1745553458646,1.13189729,600.73,600.3,0.30575064]
[1745553458949,1.13189729,600.72,600.3,0.30575064]
[1745553459849,1.13189729,600.71,600.3,0.30575064]
[1745553460549,1.13189729,600.7,600.3,0.30575064]
[1745553461250,1.13189729,600.69,600.3,0.30575064]
[1745553461951,1.13189729,600.68,600.3,0.30575064]
[1745553462149,1.13189729,600.67,600.3,0.30575064]
[1745553462745,1.13189729,600.66,600.3,0.30575064]
[1745553463349,1.13189729,600.65,600.3,0.30575064]
[1745553463649,1.13189729,600.64,600.3,0.30575064]
[1745553464444,1.13189729,600.63,600.3,0.30575064]
[1745553464649,1.13189729,600.63,600.31,0.30576047]
[1745553464846,1.13189729,600.63,600.3,0.30576047]
[1745553465254,1.13189729,600.62,600.3,0.30576047]
[1745553465753,1.13189729,600.61,600.3,0.30576047]
[1745553466147,1.13189729,600.6,600.31,0.30578786]
[1745553466451,1.13189729,600.6,600.29,1.328]
[1745553466652,1.13189729,600.6,600.3,0.30579088]
[1745553466852,1.13160069,600.59,600.29,1.328]
[1745553467654,1.13160069,600.58,600.29,1.328]
[1745553468149,1.13160069,600.57,600.29,1.328]
[1745553468953,1.13160069,600.56,600.29,1.328]
[1745553469654,1.13160069,600.55,600.29,1.328]
[1745553470254,1.13160069,600.54,600.29,1.328]
[1745553470755,1.13160069,600.53,600.29,1.328]
[1745553471155,1.13160069,600.52,600.29,1.328]
[1745553471556,1.13160069,600.51,600.29,1.328]
[1745553472052,1.13160069,600.5,600.29,1.328]
[1745553472457,1.13160069,600.49,600.29,1.328]
[1745553472956,1.13160069,600.48,600.29,1.328]
[1745553473253,1.13160069,600.47,600.29,1.328]
[1745553473456,1.13160069,600.46,600.29,1.328]
[1745553473954,1.13160069,600.45,600.29,1.328]
[1745553474458,1.13160069,600.44,600.29,1.328]
[1745553474858,1.13160069,600.43,600.29,1.328]
[1745553475460,1.13160069,600.42,600.29,1.328]
[1745553475655,1.25759526,601.88,600.29,1.328]
[1745553476161,0.28967412,601.87,600.29,1.328]
[1745553476355,1.12970907,601.86,600.29,1.328]
[1745553476559,1.12970907,601.85,600.29,1.328]
[1745553477062,1.12970907,601.84,600.29,2.217]
[1745553477463,1.12970907,601.83,600.29,2.217]
[1745553477865,1.12970907,601.82,600.29,2.217]
[1745553478465,1.12970907,601.81,600.29,2.217]
[1745553479069,1.12970907,601.8,600.29,2.217]
[1745553479263,1.41939163,601.8,600.29,2.217]
[1745553479565,1.12970907,601.79,600.29,2.217]
[1745553479962,1.12970907,601.78,600.29,2.217]
[1745553480566,1.12970907,601.77,600.29,2.217]
[1745553481168,0.28968256,601.8,600.29,2.217]
[1745553481169,1.12970907,601.76,600.29,2.217]
[1745553481568,1.12970907,601.75,600.29,2.217]
[1745553482167,1.12970907,601.74,600.29,2.217]
[1745553482768,1.12970907,601.73,600.29,2.217]
[1745553483071,1.12970907,601.73,600.29,3.15]
[1745553483569,1.12970907,601.72,600.29,3.15]
[1745553483870,1.12970907,601.71,600.29,3.15]
[1745553484765,1.12970907,601.7,600.29,3.15]
[1745553485371,1.41941212,601.69,600.29,3.15]
[1745553486475,1.12970907,601.68,600.29,3.15]
[1745553486774,1.12970907,601.67,600.29,3.15]
[1745553486974,1.12970907,601.66,600.29,3.15]
[1745553487370,1.12970907,601.66,600.29,4.23]
[1745553487773,1.12970907,601.65,600.29,4.23]
[1745553488072,1.12970907,601.64,600.29,4.23]
[1745553488376,1.41941815,601.64,600.29,4.23]
[1745553488577,1.12970907,601.63,600.29,4.23]
[1745553488876,1.12970907,601.62,600.29,4.23]
[1745553489675,1.12970907,601.61,600.29,4.23]
[1745553490075,1.12970907,601.6,600.29,4.23]
[1745553490871,1.12970907,601.59,600.29,4.23]
[1745553491070,0.28970908,601.64,600.29,4.23]
[1745553491071,1.12970907,601.58,600.29,4.23]
[1745553491375,1.41944227,601.58,600.29,4.23]
[1745553491579,1.12970907,601.57,600.29,4.23]
[1745553492373,1.12970907,601.56,600.29,4.23]
[1745553493276,1.12970907,601.55,600.29,4.23]
[1745553493676,1.12970907,601.54,600.29,4.23]
[1745553493977,1.12970907,601.53,600.29,4.23]
[1745553494377,1.12970907,601.52,600.29,4.23]
[1745553494581,1.12970907,601.51,600.29,4.23]
[1745553494878,1.12970907,601.5,600.29,4.23]
[1745553495277,1.12970907,601.49,600.29,4.23]
[1745553495877,1.12970907,601.48,600.29,4.23]
[1745553496679,1.12970907,601.47,600.29,4.23]
[1745553497274,1.12970907,601.46,600.29,4.23]
[1745553497474,1.41945675,601.46,600.29,4.23]
[1745553497875,1.12970907,601.45,600.29,4.23]
[1745553498579,1.12970907,601.44,600.29,4.23]
[1745553499083,1.12970907,601.43,600.29,4.23]
[1745553499483,1.12970907,601.42,600.29,4.23]
[1745553499681,1.12970907,601.41,600.29,4.23]
[1745553500282,1.12970907,601.4,600.29,4.23]
[1745553500482,1.41946399,601.4,600.29,4.23]
[1745553500781,1.12970907,601.39,600.29,4.23]
[1745553501282,1.12970907,601.38,600.29,4.23]
[1745553501577,1.12970907,601.37,600.29,4.23]
[1745553501984,1.12970907,601.36,600.29,4.23]
[1745553502784,1.12970907,601.35,600.29,4.23]
[1745553503177,1.12970907,601.34,600.29,4.23]
[1745553503576,1.12970907,601.33,600.29,4.23]
[1745553503882,1.12970907,601.32,600.29,4.23]
[1745553504481,1.12970907,601.31,600.29,4.23]
[1745553505383,1.12970907,601.3,600.29,4.23]
[1745553505781,1.12970907,601.29,600.29,4.23]
[1745553506588,1.12970907,601.28,600.29,4.23]
[1745553507288,1.12970907,601.27,600.29,4.23]
[1745553507589,1.12970907,601.26,600.29,4.23]
[1745553508285,1.12970907,601.25,600.29,4.23]
[1745553508789,1.12970907,601.24,600.29,4.23]
[1745553509490,1.12970907,601.23,600.29,4.23]
[1745553509991,1.12970907,601.22,600.29,4.23]
[1745553510792,1.12970907,601.21,600.29,4.23]
[1745553511492,1.12970907,601.2,600.29,4.23]
[1745553511793,1.12970907,601.19,600.29,4.23]
[1745553511993,1.12970907,601.18,600.29,4.23]
[1745553512695,1.12970907,601.17,600.29,4.23]
[1745553513097,1.12970907,601.16,600.29,4.23]
[1745553513590,1.12970907,601.15,600.29,4.23]
[1745553514090,1.12970907,601.14,600.29,4.23]
[1745553514795,1.12970907,601.13,600.29,4.23]
[1745553515091,1.12970907,601.12,600.29,1.08]
[1745553515294,1.12970907,601.12,599.94,0.28975853]
[1745553515495,1.12970907,601.11,599.95,0.30585267]
[1745553516194,1.12970907,601.1,599.95,0.30585267]
[1745553516388,1.12970907,601.09,599.95,0.30585267]
[1745553516593,1.12970907,601.08,599.95,0.30585267]
[1745553517294,1.12970907,601.07,599.95,0.30585267]
[1745553517596,1.12970907,601.06,599.95,0.30585267]
[1745553517895,1.12970907,601.06,599.96,1.164]
[1745553518095,1.12970907,601.05,599.96,2.70785061]
[1745553518297,1.12970907,601.05,599.97,0.30585061]
[1745553518894,1.12970907,601.04,599.97,0.30585061]
[1745553519195,1.12970907,601.03,599.97,0.30585061]
[1745553519390,1.12970907,601.02,599.97,0.30585061]
[1745553520195,1.12970907,601.01,599.97,0.30585061]
[1745553521297,1.12970907,601.0,599.97,0.30585061]
[1745553521597,1.12970907,600.99,599.97,0.30585061]
[1745553522096,1.12970907,600.98,599.97,0.30585061]
[1745553522899,1.12970907,600.97,599.97,0.30585061]
[1745553523598,1.12970907,600.96,599.97,0.30585061]
[1745553524294,1.12970907,600.95,599.97,0.30585061]
[1745553525594,1.12970907,600.94,599.97,0.30585061]
[1745553526199,1.12970907,600.93,599.97,0.30585061]
[1745553526895,1.25759526,602.2,599.97,0.30585061]
[1745553526896,1.12970907,600.92,599.97,0.30585061]
[1745553527598,1.12970907,600.91,599.97,0.30585061]
[1745553528102,1.12970907,600.9,599.97,0.30585061]
[1745553528906,1.12970907,600.89,599.97,0.30585061]
[1745553529302,1.12970907,600.88,599.97,0.30585061]
[1745553530301,1.12970907,600.87,599.97,0.30585061]
[1745553530704,1.12970907,600.87,599.96,5.26881524]
[1745553530896,1.12970907,600.86,599.97,0.3058142]
[1745553531202,1.12970907,600.85,599.97,0.3058142]
[1745553531999,1.12970907,600.84,599.97,0.3058142]
[1745553532204,1.12970907,600.83,599.97,0.3058142]
[1745553532407,1.12970907,600.83,599.98,0.30581781]
[1745553532599,1.12970907,600.83,599.99,0.30581781]
[1745553532906,1.12970907,600.82,600.0,0.30581781]
[1745553533106,1.12970907,600.82,599.97,0.30581781]
[1745553533309,1.12970907,600.81,600.03,1.0596617]
[1745553533609,1.12970907,600.81,600.04,0.30581781]
[1745553533808,1.12970907,600.8,600.04,0.30581781]
[1745553534010,1.12970907,600.8,600.05,0.30581628]
[1745553534210,1.12970907,600.8,600.06,0.30581628]
[1745553534408,1.12970907,600.79,600.04,0.30581628]
[1745553534608,1.12970907,600.79,600.05,0.30581628]
[1745553534807,1.12970907,600.78,600.04,0.30581628]
[1745553535210,1.12970907,600.77,600.04,0.30581628]
[1745553535510,1.12970907,600.76,600.06,1.0596617]
[1745553535712,1.12970907,600.76,600.07,0.30581781]
[1745553535907,1.12970907,600.75,600.07,0.30581781]
[1745553536508,1.12970907,600.74,600.07,0.30581781]
[1745553537210,1.12970907,600.73,600.07,0.30581781]
[1745553537415,1.12970907,600.72,600.11,1.0596617]
[1745553537615,1.12970907,600.72,600.12,0.30581781]
[1745553537809,1.12970907,600.71,600.12,0.30581781]
[1745553538114,1.12970907,600.7,600.12,0.30581781]
[1745553538414,1.12970907,600.69,600.12,0.30581781]
[1745553538716,1.12970907,600.69,600.11,1.0596617]
[1745553538916,1.12970907,600.69,600.12,0.30581573]
[1745553539317,1.12970907,600.68,600.12,0.30581573]
[1745553539717,1.12970907,600.67,600.12,0.30581573]
[1745553540318,1.12970907,600.66,600.11,1.0596617]
[1745553540518,1.12970907,600.66,600.12,0.30581765]
[1745553540818,1.12970907,600.65,600.12,0.30581765]
[1745553541014,1.12970907,600.65,600.12,1.36547935]
[1745553541218,1.12970907,600.65,600.13,0.30581765]
[1745553541518,1.12970907,600.64,600.14,0.30581621]
[1745553541713,1.12970907,600.63,600.13,0.30581621]
[1745553541920,1.12970907,600.63,600.14,0.30581621]
[1745553542119,1.12970907,600.62,600.15,0.30581621]
[1745553542318,1.12970907,600.62,600.13,0.30581621]
[1745553542619,1.12970907,600.61,600.14,0.30581621]
[1745553542813,1.12970907,600.6,600.13,0.30581621]
[1745553543017,1.12970907,600.6,600.12,1.0596617]
[1745553543217,1.12970907,600.59,600.13,0.30581782]
[1745553543620,1.12970907,600.58,600.13,0.30581782]
[1745553544017,1.12970907,600.57,600.13,0.30581782]
[1745553544522,1.12970907,600.56,600.13,0.30581782]
[1745553544821,1.12970907,600.55,600.14,0.30581754]
[1745553545017,1.12970907,600.55,600.05,0.30581754]
[1745553545221,1.12970907,600.54,600.05,0.30581754]
[1745553545422,1.12970907,600.54,600.04,1.0596617]
[1745553545622,1.12970907,600.53,600.04,1.0596617]
[1745553545823,1.12970907,600.53,600.05,0.3057477]
[1745553546023,1.25759526,601.88,600.05,0.3057477]
[1745553546524,0.28964398,601.87,600.05,0.3057477]
[1745553546725,1.12953961,601.86,600.05,0.3057477]
[1745553546925,1.12953961,601.85,600.05,0.3057477]
[1745553547125,1.12953961,601.84,600.05,0.3057477]
[1745553547427,1.12953961,601.84,600.14,1.0596617]
[1745553547626,1.12953961,601.83,600.15,0.3057477]
[1745553547926,1.12953961,601.82,600.15,0.3057477]
[1745553548126,1.12953961,601.82,600.15,1.3817477]
[1745553548325,1.12953961,601.81,600.16,0.3057477]
[1745553548528,1.41917395,601.81,600.16,0.3057477]
[1745553548827,1.12953961,601.8,600.16,0.3057477]
[1745553549327,1.12953961,601.79,600.16,0.3057477]
[1745553549628,1.12953961,601.78,600.16,0.3057477]
[1745553550022,1.12953961,601.77,600.16,0.3057477]
[1745553550528,1.12953961,601.76,600.16,0.3057477]
[1745553550823,1.12953961,601.75,600.16,0.3057477]
[1745553551627,1.12953961,601.74,600.16,0.3057477]
[1745553552229,1.12953961,601.73,600.16,0.3057477]
[1745553552628,1.12953961,601.72,600.15,1.076]
[1745553552828,1.12953961,601.72,600.16,0.30569851]
[1745553553124,1.12953961,601.71,600.16,0.30569851]
[1745553553627,1.12953961,601.7,600.16,0.30569851]
[1745553554128,1.12953961,601.69,600.16,0.30569851]
[1745553554731,1.12953961,601.68,600.16,0.30569851]
[1745553555228,1.12953961,601.67,600.16,0.30569851]
[1745553555624,1.12953961,601.66,600.16,0.30569851]
[1745553556130,1.12953961,601.65,600.16,1.68269851]
[1745553556329,1.12953961,601.65,600.17,0.30569851]
[1745553556528,1.12953961,601.64,600.17,0.30569851]
[1745553557530,1.12953961,601.63,600.17,0.30569851]
[1745553557829,1.12953961,601.62,600.17,0.30569851]
[1745553558331,1.12953961,601.61,600.17,0.30569851]
[1745553559232,1.12953961,601.6,600.17,0.30569851]
[1745553559631,1.12953961,601.59,600.17,0.30569851]
[1745553560231,1.12953961,601.58,600.17,0.30569851]
[1745553560634,1.12953961,601.58,600.16,1.377]
[1745553560830,1.12953961,601.58,600.17,0.30570592]
[1745553561032,1.12953961,601.57,600.17,0.30570592]
[1745553561333,1.12953961,601.56,600.17,0.30570592]
[1745553562433,1.12953961,601.55,600.18,0.30571035]
[1745553562732,1.12953961,601.55,600.19,0.30571035]
[1745553562931,1.12953961,601.55,600.2,0.30571035]
[1745553563130,1.12953961,601.54,600.17,0.30571035]
[1745553563329,1.12953961,601.54,600.21,0.30571035]
[1745553563527,1.12953961,601.53,600.22,0.30571035]
[1745553563832,1.12953961,601.53,600.18,0.30571035]
[1745553564034,1.12953961,601.53,600.19,0.30571035]
[1745553564334,1.12953961,601.52,600.2,0.30571035]
[1745553564734,1.12953961,601.51,600.21,0.30571035]